[Event "Late-Titled-Tuesday-Blitz-March-12-2024"]
[Site "Chess.com"]
[Date "2024.03.12"]
[Round "8"]
[White "Willhaven3"]
[Black "szachmistrz2500"]
[Result "1-0"]
[WhiteElo "2631"]
[BlackElo "2475"]
[TimeControl "180+1"]
[EndTime "15:26:50 PDT"]
[Termination "Willhaven3 won by resignation"]

1. e4 {[%clk 0:03:00.9]} 1... c5 {[%clk 0:02:59.1]} 2. Nf3 {[%clk 0:03:00.3]}
2... d6 {[%clk 0:02:59.3]} 3. c3 {[%clk 0:03:00.6]} 3... Nf6 {[%clk 0:02:58.7]}
4. Bd3 {[%clk 0:03:01]} 4... Bg4 {[%clk 0:02:57.7]} 5. h3 {[%clk 0:02:55.9]}
5... Bh5 {[%clk 0:02:57.4]} 6. Bc2 {[%clk 0:02:55.3]} 6... e6 {[%clk 0:02:55.5]}
7. O-O {[%clk 0:02:54.3]} 7... Be7 {[%clk 0:02:54.3]} 8. d4 {[%clk 0:02:51.2]}
8... cxd4 {[%clk 0:02:53.9]} 9. cxd4 {[%clk 0:02:52.1]} 9... O-O {[%clk
0:02:49.5]} 10. Nc3 {[%clk 0:02:49]} 10... Nc6 {[%clk 0:02:49.3]} 11. Be3 {[%clk
0:02:49.2]} 11... a6 {[%clk 0:02:34]} 12. g4 {[%clk 0:02:39.5]} 12... Bg6 {[%clk
0:02:33]} 13. Nh4 {[%clk 0:02:28.6]} 13... d5 {[%clk 0:02:21.2]} 14. Nxg6 {[%clk
0:02:25.6]} 14... fxg6 {[%clk 0:02:14.2]} 15. e5 {[%clk 0:02:25.2]} 15... Nd7
{[%clk 0:02:12.2]} 16. f4 {[%clk 0:02:17.6]} 16... b5 {[%clk 0:02:11.4]} 17. a3
{[%clk 0:02:17.2]} 17... Na5 {[%clk 0:02:07.7]} 18. b3 {[%clk 0:01:57]} 18...
Rc8 {[%clk 0:02:06]} 19. Ne2 {[%clk 0:01:54]} 19... Qc7 {[%clk 0:01:59.5]} 20.
Rc1 {[%clk 0:01:52.3]} 20... Bxa3 {[%clk 0:01:57.5]} 21. Ra1 {[%clk 0:01:44.1]}
21... Bb4 {[%clk 0:01:47.6]} 22. Bd3 {[%clk 0:01:43.5]} 22... Qb6 {[%clk
0:01:43]} 23. Rf3 {[%clk 0:01:36.1]} 23... Nc6 {[%clk 0:01:33.8]} 24. Bb1 {[%clk
0:01:28]} 24... Ne7 {[%clk 0:01:25.6]} 25. Bf2 {[%clk 0:01:04.4]} 25... a5
{[%clk 0:01:20.5]} 26. Kg2 {[%clk 0:00:55.2]} 26... Qc6 {[%clk 0:01:15.2]} 27.
Bh4 {[%clk 0:00:51.7]} 27... Rf7 {[%clk 0:01:10]} 28. Bxe7 {[%clk 0:00:19.6]}
28... Rxe7 {[%clk 0:01:02.1]} 29. f5 {[%clk 0:00:19.4]} 29... exf5 {[%clk
0:00:59.8]} 30. gxf5 {[%clk 0:00:20.3]} 30... gxf5 {[%clk 0:00:58]} 31. Bxf5
{[%clk 0:00:21.2]} 31... Rf8 {[%clk 0:00:51.2]} 32. Qd3 {[%clk 0:00:17.3]} 32...
g6 {[%clk 0:00:44]} 33. Rc1 {[%clk 0:00:17.1]} 33... Qb6 {[%clk 0:00:33.9]} 34.
Bg4 {[%clk 0:00:13.8]} 34... Rxf3 {[%clk 0:00:29.1]} 35. Qxf3 {[%clk 0:00:14.7]}
35... Rf7 {[%clk 0:00:26.2]} 36. Qxd5 {[%clk 0:00:13.9]} 36... Nf8 {[%clk
0:00:22]} 37. Rc8 {[%clk 0:00:12.1]} 37... Bd2 {[%clk 0:00:17.7]} 38. Be6 {[%clk
0:00:11.5]} 38... Bh6 {[%clk 0:00:15]} 39. Bxf7+ {[%clk 0:00:11.4]} 1-0

[Event "Late-Titled-Tuesday-Blitz-March-12-2024"]
[Site "Chess.com"]
[Date "2024.03.12"]
[Round "8"]
[White "Kildepiotr"]
[Black "cthulhuuu"]
[Result "0-1"]
[WhiteElo "2692"]
[BlackElo "2447"]
[TimeControl "180+1"]
[EndTime "15:26:58 PDT"]
[Termination "cthulhuuu won by checkmate"]

1. d4 {[%clk 0:02:53.8]} 1... Nf6 {[%clk 0:02:59.9]} 2. c4 {[%clk 0:02:54]} 2...
e5 {[%clk 0:03:00.1]} 3. dxe5 {[%clk 0:02:50.5]} 3... Ng4 {[%clk 0:03:00.6]} 4.
Nc3 {[%clk 0:02:49.3]} 4... Nxe5 {[%clk 0:02:58.1]} 5. b3 {[%clk 0:02:49.2]}
5... Bb4 {[%clk 0:02:52.4]} 6. Bd2 {[%clk 0:02:41.7]} 6... Qe7 {[%clk
0:02:50.5]} 7. e3 {[%clk 0:02:41.7]} 7... c6 {[%clk 0:02:49.5]} 8. Be2 {[%clk
0:02:33.2]} 8... d6 {[%clk 0:02:47.8]} 9. Nh3 {[%clk 0:02:23.7]} 9... a5 {[%clk
0:02:44.1]} 10. Nf4 {[%clk 0:02:23.4]} 10... O-O {[%clk 0:02:42.8]} 11. O-O
{[%clk 0:02:23.1]} 11... Bf5 {[%clk 0:02:37.8]} 12. a3 {[%clk 0:02:15.3]} 12...
Bc5 {[%clk 0:02:37.9]} 13. b4 {[%clk 0:02:01.7]} 13... axb4 {[%clk 0:02:02.3]}
14. axb4 {[%clk 0:02:02.6]} 14... Rxa1 {[%clk 0:02:02.4]} 15. Qxa1 {[%clk
0:02:02.2]} 15... Bb6 {[%clk 0:02:03]} 16. Na4 {[%clk 0:01:20]} 16... Bc7 {[%clk
0:02:02.8]} 17. b5 {[%clk 0:01:20.2]} 17... Nbd7 {[%clk 0:01:57.6]} 18. Nc3
{[%clk 0:01:09.2]} 18... Nc5 {[%clk 0:01:51.8]} 19. Qa7 {[%clk 0:01:00.6]} 19...
Bb8 {[%clk 0:01:19.2]} 20. Qa3 {[%clk 0:00:59.3]} 20... g5 {[%clk 0:00:54.1]}
21. Nh5 {[%clk 0:00:55.4]} 21... Bg6 {[%clk 0:00:54]} 22. Ng3 {[%clk 0:00:54.8]}
22... f5 {[%clk 0:00:46.2]} 23. f4 {[%clk 0:00:51.9]} 23... gxf4 {[%clk
0:00:41.8]} 24. exf4 {[%clk 0:00:52.8]} 24... Ng4 {[%clk 0:00:29]} 25. Bxg4
{[%clk 0:00:23.1]} 25... fxg4 {[%clk 0:00:29.9]} 26. f5 {[%clk 0:00:23.5]} 26...
Bf7 {[%clk 0:00:30.2]} 27. Qb4 {[%clk 0:00:15]} 27... Qe5 {[%clk 0:00:29.5]} 28.
Kh1 {[%clk 0:00:11.2]} 28... Qd4 {[%clk 0:00:29.3]} 29. bxc6 {[%clk 0:00:11.1]}
29... Qxd2 {[%clk 0:00:27.4]} 30. cxb7 {[%clk 0:00:11]} 30... Nd3 {[%clk
0:00:24.9]} 31. Qb3 {[%clk 0:00:05.9]} 31... Nf2+ {[%clk 0:00:25.1]} 32. Kg1
{[%clk 0:00:06.4]} 32... Ba7 {[%clk 0:00:25.1]} 33. Nb5 {[%clk 0:00:06.7]} 33...
Bc5 {[%clk 0:00:10.8]} 34. f6 {[%clk 0:00:04.6]} 34... Ne4+ {[%clk 0:00:10.1]}
35. Kh1 {[%clk 0:00:05.1]} 35... Nxg3+ {[%clk 0:00:10.6]} 36. hxg3 {[%clk
0:00:06]} 36... Qh6# {[%clk 0:00:11]} 0-1

[Event "Late-Titled-Tuesday-Blitz-March-12-2024"]
[Site "Chess.com"]
[Date "2024.03.12"]
[Round "8"]
[White "buenamor1972"]
[Black "maximnovik"]
[Result "0-1"]
[WhiteElo "2388"]
[BlackElo "2603"]
[TimeControl "180+1"]
[EndTime "15:26:59 PDT"]
[Termination "maximnovik won by resignation"]

1. d4 {[%clk 0:02:56.8]} 1... Nf6 {[%clk 0:02:59.7]} 2. c4 {[%clk 0:02:56.4]}
2... g6 {[%clk 0:02:59.9]} 3. Nc3 {[%clk 0:02:55.4]} 3... d5 {[%clk 0:03:00.2]}
4. Nf3 {[%clk 0:02:55.4]} 4... Bg7 {[%clk 0:03:00.4]} 5. Bg5 {[%clk 0:02:55.5]}
5... Ne4 {[%clk 0:03:00.5]} 6. Bf4 {[%clk 0:02:54.9]} 6... c5 {[%clk 0:03:00.4]}
7. e3 {[%clk 0:02:50]} 7... cxd4 {[%clk 0:02:59.6]} 8. exd4 {[%clk 0:02:48.7]}
8... Nxc3 {[%clk 0:02:57.3]} 9. bxc3 {[%clk 0:02:48.5]} 9... O-O {[%clk
0:02:55.1]} 10. Be2 {[%clk 0:02:45.5]} 10... Qa5 {[%clk 0:02:47.6]} 11. Qb3
{[%clk 0:02:34.6]} 11... Be6 {[%clk 0:02:31.8]} 12. O-O {[%clk 0:02:32.4]} 12...
dxc4 {[%clk 0:02:30.1]} 13. Bxc4 {[%clk 0:02:32.9]} 13... Bxc4 {[%clk
0:02:29.4]} 14. Qxc4 {[%clk 0:02:33.1]} 14... Nd7 {[%clk 0:02:21.5]} 15. Rfc1
{[%clk 0:02:27]} 15... Rfc8 {[%clk 0:02:15.5]} 16. Qb3 {[%clk 0:02:26.5]} 16...
b6 {[%clk 0:01:45.1]} 17. c4 {[%clk 0:02:04.8]} 17... Qf5 {[%clk 0:01:39.3]} 18.
Be3 {[%clk 0:02:00.7]} 18... e5 {[%clk 0:01:36.1]} 19. Rd1 {[%clk 0:01:51.9]}
19... exd4 {[%clk 0:01:09.4]} 20. Nxd4 {[%clk 0:01:51.2]} 20... Qe4 {[%clk
0:00:59.8]} 21. Rac1 {[%clk 0:01:51]} 21... Nc5 {[%clk 0:00:58.8]} 22. Qa3
{[%clk 0:01:40.5]} 22... Rd8 {[%clk 0:00:57.8]} 23. Nb5 {[%clk 0:01:38.1]} 23...
Rxd1+ {[%clk 0:00:55.7]} 24. Rxd1 {[%clk 0:01:38.3]} 24... Qxc4 {[%clk
0:00:55.3]} 25. Nc7 {[%clk 0:01:34.9]} 25... Rc8 {[%clk 0:00:52.6]} 26. Qxa7
{[%clk 0:01:33.7]} 26... Ne4 {[%clk 0:00:25.4]} 27. Qb7 {[%clk 0:01:20.3]} 27...
Rf8 {[%clk 0:00:15.4]} 28. Qxb6 {[%clk 0:01:17.6]} 28... Nc3 {[%clk 0:00:15.3]}
29. Qc5 {[%clk 0:00:43.2]} 29... Qxc5 {[%clk 0:00:14.1]} 30. Bxc5 {[%clk
0:00:43]} 30... Nxd1 {[%clk 0:00:14.4]} 31. Bxf8 {[%clk 0:00:43]} 31... Bxf8
{[%clk 0:00:14.2]} 32. a4 {[%clk 0:00:43.1]} 32... Bb4 {[%clk 0:00:13.8]} 33.
Nd5 {[%clk 0:00:42.1]} 33... Ba5 {[%clk 0:00:13.3]} 34. Kf1 {[%clk 0:00:41.5]}
34... Nc3 {[%clk 0:00:13.4]} 35. Ne7+ {[%clk 0:00:39.5]} 35... Kf8 {[%clk
0:00:13]} 36. Nc6 {[%clk 0:00:39.9]} 36... Bc7 {[%clk 0:00:11.8]} 37. a5 {[%clk
0:00:39.9]} 37... Nb5 {[%clk 0:00:11.5]} 38. a6 {[%clk 0:00:40.1]} 38... Bb6
{[%clk 0:00:11.8]} 39. Ke2 {[%clk 0:00:38.8]} 39... Nd4+ {[%clk 0:00:11.2]} 40.
Nxd4 {[%clk 0:00:36]} 40... Bxd4 {[%clk 0:00:11.6]} 41. f4 {[%clk 0:00:34.9]}
41... Ba7 {[%clk 0:00:12.1]} 42. Kf3 {[%clk 0:00:35.3]} 42... Ke7 {[%clk
0:00:12.8]} 43. g4 {[%clk 0:00:36]} 43... f5 {[%clk 0:00:12.9]} 44. h3 {[%clk
0:00:35.1]} 44... Ke6 {[%clk 0:00:13.1]} 45. Ke2 {[%clk 0:00:35.1]} 45... Kd5
{[%clk 0:00:13.4]} 46. Kd3 {[%clk 0:00:35.3]} 46... h5 {[%clk 0:00:13.4]} 47.
gxh5 {[%clk 0:00:32.2]} 47... gxh5 {[%clk 0:00:13.5]} 0-1

[Event "Late-Titled-Tuesday-Blitz-March-12-2024"]
[Site "Chess.com"]
[Date "2024.03.12"]
[Round "8"]
[White "zano2023"]
[Black "Pachonpower"]
[Result "0-1"]
[WhiteElo "2207"]
[BlackElo "2321"]
[TimeControl "180+1"]
[EndTime "15:26:59 PDT"]
[Termination "Pachonpower won by resignation"]

1. d4 {[%clk 0:03:00.9]} 1... Nf6 {[%clk 0:02:56.6]} 2. Nd2 {[%clk 0:03:00.1]}
2... d5 {[%clk 0:02:55.7]} 3. Ngf3 {[%clk 0:02:58.3]} 3... b6 {[%clk 0:02:55.9]}
4. e3 {[%clk 0:02:58.2]} 4... Bb7 {[%clk 0:02:56.8]} 5. Bd3 {[%clk 0:02:55.4]}
5... e6 {[%clk 0:02:57.3]} 6. O-O {[%clk 0:02:54.3]} 6... Nbd7 {[%clk
0:02:57.3]} 7. Qe2 {[%clk 0:02:51]} 7... Ne4 {[%clk 0:02:57.3]} 8. Ne5 {[%clk
0:02:49.4]} 8... Bd6 {[%clk 0:02:57.3]} 9. Nxd7 {[%clk 0:02:45.3]} 9... Qxd7
{[%clk 0:02:58.2]} 10. f3 {[%clk 0:02:45.3]} 10... Nxd2 {[%clk 0:02:51.6]} 11.
Bxd2 {[%clk 0:02:46.2]} 11... O-O {[%clk 0:02:51]} 12. e4 {[%clk 0:02:44.2]}
12... dxe4 {[%clk 0:02:49.8]} 13. fxe4 {[%clk 0:02:44.8]} 13... e5 {[%clk
0:02:43.2]} 14. c3 {[%clk 0:02:30.5]} 14... c5 {[%clk 0:02:41.8]} 15. d5 {[%clk
0:02:29.5]} 15... Kh8 {[%clk 0:02:38.8]} 16. c4 {[%clk 0:02:29.5]} 16... Bc8
{[%clk 0:02:27.8]} 17. h3 {[%clk 0:02:09.3]} 17... Qe7 {[%clk 0:02:22.8]} 18.
Qh5 {[%clk 0:02:06.6]} 18... f6 {[%clk 0:02:21.7]} 19. Be2 {[%clk 0:02:02.7]}
19... Bd7 {[%clk 0:02:21.9]} 20. Bg4 {[%clk 0:02:00.9]} 20... Be8 {[%clk
0:02:22.1]} 21. Qh4 {[%clk 0:02:00.7]} 21... Bg6 {[%clk 0:02:22.1]} 22. Bf5
{[%clk 0:02:00.1]} 22... Qf7 {[%clk 0:02:22.5]} 23. Rf3 {[%clk 0:01:57.4]} 23...
Bxf5 {[%clk 0:02:19.2]} 24. Rxf5 {[%clk 0:01:55.7]} 24... Qg6 {[%clk 0:02:18.1]}
25. Raf1 {[%clk 0:01:54.1]} 25... Kg8 {[%clk 0:02:18.6]} 26. R5f3 {[%clk
0:01:51.2]} 26... Be7 {[%clk 0:02:00.7]} 27. Rg3 {[%clk 0:01:41.8]} 27... f5
{[%clk 0:01:59.1]} 28. Bg5 {[%clk 0:01:27.6]} 28... f4 {[%clk 0:01:51.7]} 29.
Rg4 {[%clk 0:01:20.8]} 29... Bxg5 {[%clk 0:01:50.9]} 30. Qxg5 {[%clk 0:01:14.3]}
30... Qxg5 {[%clk 0:01:50.6]} 31. Rxg5 {[%clk 0:01:14.5]} 31... Rae8 {[%clk
0:01:50.3]} 32. g3 {[%clk 0:01:04]} 32... h6 {[%clk 0:01:48.3]} 33. Rg6 {[%clk
0:01:02.4]} 33... fxg3 {[%clk 0:01:40.4]} 34. Rxg3 {[%clk 0:00:55.9]} 34...
Rxf1+ {[%clk 0:01:39.8]} 35. Kxf1 {[%clk 0:00:56]} 35... Rf8+ {[%clk 0:01:40.7]}
36. Ke2 {[%clk 0:00:55.9]} 36... Rf4 {[%clk 0:01:41.6]} 37. Ke3 {[%clk
0:00:56.1]} 37... Kf7 {[%clk 0:01:41.3]} 38. a3 {[%clk 0:00:51]} 38... g5 {[%clk
0:01:40.5]} 39. b4 {[%clk 0:00:50.4]} 39... Ke7 {[%clk 0:01:39.4]} 40. bxc5
{[%clk 0:00:50.1]} 40... bxc5 {[%clk 0:01:40.3]} 41. Rg2 {[%clk 0:00:47.9]}
41... Rh4 {[%clk 0:01:39.4]} 42. Rh2 {[%clk 0:00:46.7]} 42... g4 {[%clk
0:01:38.9]} 43. a4 {[%clk 0:00:38.2]} 43... g3 {[%clk 0:01:25.2]} 44. Rg2 {[%clk
0:00:36]} 44... Rxh3 {[%clk 0:01:25.3]} 45. Kf3 {[%clk 0:00:36.6]} 45... h5
{[%clk 0:01:25.5]} 46. Rxg3 {[%clk 0:00:37]} 46... Rh1 {[%clk 0:01:24.3]} 47.
Rg7+ {[%clk 0:00:35.9]} 47... Kd6 {[%clk 0:01:23.3]} 48. Rxa7 {[%clk 0:00:36.6]}
48... Ra1 {[%clk 0:01:23.2]} 49. Kg3 {[%clk 0:00:36.1]} 49... Rc1 {[%clk
0:01:22.1]} 50. Ra6+ {[%clk 0:00:36.5]} 50... Kd7 {[%clk 0:01:22.3]} 51. Kh4
{[%clk 0:00:36.6]} 51... Rxc4 {[%clk 0:01:22.6]} 52. Kxh5 {[%clk 0:00:36.7]}
52... Rxe4 {[%clk 0:01:22.8]} 53. Kg5 {[%clk 0:00:36.8]} 53... Rf4 {[%clk
0:01:22.6]} 54. Re6 {[%clk 0:00:33.9]} 54... Rxa4 {[%clk 0:01:22.1]} 55. Rxe5
{[%clk 0:00:34]} 55... Kd6 {[%clk 0:01:22.8]} 56. Kf5 {[%clk 0:00:33.8]} 56...
Ra1 {[%clk 0:01:21.8]} 57. Re6+ {[%clk 0:00:33.6]} 57... Kxd5 {[%clk 0:01:22.1]}
58. Re2 {[%clk 0:00:32.9]} 58... Rf1+ {[%clk 0:01:21.6]} 59. Kg4 {[%clk
0:00:32.7]} 59... c4 {[%clk 0:01:22]} 60. Rd2+ {[%clk 0:00:31.4]} 60... Ke4
{[%clk 0:01:22.3]} 61. Kg3 {[%clk 0:00:31.5]} 61... c3 {[%clk 0:01:22.4]} 62.
Rd8 {[%clk 0:00:31]} 62... Rf3+ {[%clk 0:01:21.2]} 63. Kg2 {[%clk 0:00:31.2]}
63... Rd3 {[%clk 0:01:21.3]} 64. Rc8 {[%clk 0:00:27.6]} 64... Rd2+ {[%clk
0:01:21.5]} 65. Kf1 {[%clk 0:00:28.2]} 65... c2 {[%clk 0:01:22.4]} 66. Re8+
{[%clk 0:00:25.1]} 66... Kd3 {[%clk 0:01:21.3]} 67. Rd8+ {[%clk 0:00:25.3]}
67... Kc3 {[%clk 0:01:22]} 68. Rc8+ {[%clk 0:00:25.5]} 68... Kb4 {[%clk
0:01:18.9]} 69. Rb8+ {[%clk 0:00:15.8]} 69... Ka5 {[%clk 0:01:19]} 70. Ra8+
{[%clk 0:00:14.6]} 70... Kb6 {[%clk 0:01:19.2]} 0-1

[Event "Late-Titled-Tuesday-Blitz-March-12-2024"]
[Site "Chess.com"]
[Date "2024.03.12"]
[Round "8"]
[White "Redzishchess"]
[Black "Fore_Man"]
[Result "0-1"]
[WhiteElo "2505"]
[BlackElo "2332"]
[TimeControl "180+1"]
[EndTime "15:27:00 PDT"]
[Termination "Fore_Man won by checkmate"]

1. d4 {[%clk 0:03:00.9]} 1... Nf6 {[%clk 0:02:59.9]} 2. c4 {[%clk 0:03:01.2]}
2... e6 {[%clk 0:02:59.8]} 3. Nc3 {[%clk 0:03:01.2]} 3... Bb4 {[%clk 0:02:59.9]}
4. e3 {[%clk 0:03:01.7]} 4... O-O {[%clk 0:02:59.7]} 5. Ne2 {[%clk 0:03:01]}
5... d5 {[%clk 0:02:55.7]} 6. a3 {[%clk 0:03:00.9]} 6... Bd6 {[%clk 0:02:55.9]}
7. cxd5 {[%clk 0:03:00.6]} 7... exd5 {[%clk 0:02:56.8]} 8. Ng3 {[%clk 0:03:01]}
8... Re8 {[%clk 0:02:47.4]} 9. Bd3 {[%clk 0:03:00]} 9... a5 {[%clk 0:02:45.8]}
10. O-O {[%clk 0:02:59.5]} 10... Na6 {[%clk 0:02:45.8]} 11. Qc2 {[%clk
0:02:57.8]} 11... c6 {[%clk 0:02:39.1]} 12. Bd2 {[%clk 0:02:57.1]} 12... Nc7
{[%clk 0:02:38]} 13. f3 {[%clk 0:02:51.3]} 13... c5 {[%clk 0:02:34.8]} 14. Rae1
{[%clk 0:02:27.4]} 14... Ne6 {[%clk 0:02:31.5]} 15. Nb5 {[%clk 0:01:55.2]} 15...
Bf8 {[%clk 0:02:17.7]} 16. e4 {[%clk 0:01:26.9]} 16... c4 {[%clk 0:01:44]} 17.
Be2 {[%clk 0:01:24.9]} 17... Bd7 {[%clk 0:01:44.2]} 18. exd5 {[%clk 0:01:17.3]}
18... Nxd5 {[%clk 0:01:20.5]} 19. Bxc4 {[%clk 0:01:10]} 19... Bxb5 {[%clk
0:01:20.5]} 20. Bxb5 {[%clk 0:01:10.1]} 20... Nxd4 {[%clk 0:01:13.5]} 21. Rxe8
{[%clk 0:01:07.5]} 21... Qb6 {[%clk 0:00:34]} 22. Qe4 {[%clk 0:00:24.6]} 22...
Nxb5+ {[%clk 0:00:29.8]} 23. Kh1 {[%clk 0:00:19.5]} 23... Nf6 {[%clk 0:00:25.3]}
24. Rxf8+ {[%clk 0:00:16.1]} 24... Rxf8 {[%clk 0:00:26.2]} 25. Qh4 {[%clk
0:00:13.5]} 25... Nc7 {[%clk 0:00:20]} 26. Bg5 {[%clk 0:00:12.1]} 26... Ncd5
{[%clk 0:00:17.1]} 27. Nf5 {[%clk 0:00:11.4]} 27... Qxb2 {[%clk 0:00:13.8]} 28.
Bh6 {[%clk 0:00:10.5]} 28... Ne8 {[%clk 0:00:05.2]} 29. Qe4 {[%clk 0:00:03.3]}
29... Ndf6 {[%clk 0:00:03.3]} 30. Ne7+ {[%clk 0:00:03.6]} 30... Kh8 {[%clk
0:00:03]} 31. Qf4 {[%clk 0:00:01.9]} 31... Qb5 {[%clk 0:00:03.2]} 32. Bg5 {[%clk
0:00:01.4]} 32... Qxf1# {[%clk 0:00:03.2]} 0-1

[Event "Late-Titled-Tuesday-Blitz-March-12-2024"]
[Site "Chess.com"]
[Date "2024.03.12"]
[Round "8"]
[White "SergioMoralesG"]
[Black "Jahonas"]
[Result "1-0"]
[WhiteElo "2463"]
[BlackElo "2312"]
[TimeControl "180+1"]
[EndTime "15:27:00 PDT"]
[Termination "SergioMoralesG won on time"]

1. d4 {[%clk 0:02:55.8]} 1... d5 {[%clk 0:02:59.2]} 2. c4 {[%clk 0:02:55.8]}
2... e6 {[%clk 0:02:58]} 3. Nf3 {[%clk 0:02:56.3]} 3... Nf6 {[%clk 0:02:57.1]}
4. Nc3 {[%clk 0:02:56.8]} 4... Be7 {[%clk 0:02:55.9]} 5. Bf4 {[%clk 0:02:56.7]}
5... c6 {[%clk 0:02:55.5]} 6. e3 {[%clk 0:02:56.5]} 6... a6 {[%clk 0:02:55.1]}
7. c5 {[%clk 0:02:54.7]} 7... Nbd7 {[%clk 0:02:54.6]} 8. h3 {[%clk 0:02:55]}
8... O-O {[%clk 0:02:54.1]} 9. Bd3 {[%clk 0:02:55]} 9... b6 {[%clk 0:02:46.2]}
10. b4 {[%clk 0:02:55.2]} 10... bxc5 {[%clk 0:02:44.5]} 11. bxc5 {[%clk
0:02:56.1]} 11... Qa5 {[%clk 0:02:43.3]} 12. Qd2 {[%clk 0:02:54]} 12... Re8
{[%clk 0:02:17.8]} 13. O-O {[%clk 0:02:51.9]} 13... Bd8 {[%clk 0:02:13.5]} 14.
Rab1 {[%clk 0:02:43]} 14... Bc7 {[%clk 0:02:07.9]} 15. Qc2 {[%clk 0:02:08.6]}
15... e5 {[%clk 0:01:57.6]} 16. Nxe5 {[%clk 0:02:08.5]} 16... Nxe5 {[%clk
0:01:55.4]} 17. Bxe5 {[%clk 0:02:09.4]} 17... Bxe5 {[%clk 0:01:54.2]} 18. dxe5
{[%clk 0:02:10.3]} 18... Rxe5 {[%clk 0:01:52.8]} 19. Ne2 {[%clk 0:02:11]} 19...
Ne4 {[%clk 0:01:40.4]} 20. Bxe4 {[%clk 0:02:02.9]} 20... Rxe4 {[%clk 0:01:27.3]}
21. Nd4 {[%clk 0:01:59]} 21... g6 {[%clk 0:00:58]} 22. Nxc6 {[%clk 0:01:52.7]}
22... Qc7 {[%clk 0:00:44.3]} 23. Nd4 {[%clk 0:01:52.2]} 23... Rh4 {[%clk
0:00:38.3]} 24. Rb6 {[%clk 0:01:23.4]} 24... Qe7 {[%clk 0:00:28.6]} 25. Rfb1
{[%clk 0:01:02.2]} 25... Bxh3 {[%clk 0:00:15.1]} 26. Rb8+ {[%clk 0:01:00]} 26...
Rxb8 {[%clk 0:00:14.2]} 27. Rxb8+ {[%clk 0:01:00.9]} 27... Kg7 {[%clk
0:00:14.1]} 28. Nf3 {[%clk 0:00:56.6]} 28... Rg4 {[%clk 0:00:12.5]} 29. g3
{[%clk 0:00:39.9]} 29... Re4 {[%clk 0:00:09.6]} 30. Qc3+ {[%clk 0:00:20.4]}
30... Kh6 {[%clk 0:00:09.1]} 31. c6 {[%clk 0:00:20.9]} 31... Rc4 {[%clk
0:00:08.4]} 32. Qd2 {[%clk 0:00:12.5]} 32... Rxc6 {[%clk 0:00:06.1]} 33. e4+
{[%clk 0:00:11.9]} 33... g5 {[%clk 0:00:04.3]} 34. exd5 {[%clk 0:00:10.2]} 34...
Rd6 {[%clk 0:00:04.3]} 35. Rg8 {[%clk 0:00:08.1]} 35... Be6 {[%clk 0:00:04]} 36.
Rxg5 {[%clk 0:00:07.5]} 36... f6 {[%clk 0:00:01.5]} 37. Rg4+ {[%clk 0:00:05.2]}
1-0

[Event "Late-Titled-Tuesday-Blitz-March-12-2024"]
[Site "Chess.com"]
[Date "2024.03.12"]
[Round "8"]
[White "Bongcloudtransvestit"]
[Black "mestrefeitosa19"]
[Result "1-0"]
[WhiteElo "2453"]
[BlackElo "2304"]
[TimeControl "180+1"]
[EndTime "15:27:00 PDT"]
[Termination "Bongcloudtransvestit won by checkmate"]

1. Nf3 {[%clk 0:02:53.8]} 1... d5 {[%clk 0:02:58.5]} 2. d4 {[%clk 0:02:51.1]}
2... Nf6 {[%clk 0:02:58.7]} 3. c4 {[%clk 0:02:49.8]} 3... e6 {[%clk 0:02:59.1]}
4. Nc3 {[%clk 0:02:45]} 4... Be7 {[%clk 0:02:59.7]} 5. g3 {[%clk 0:02:44.5]}
5... O-O {[%clk 0:02:59.9]} 6. Bg2 {[%clk 0:02:45.4]} 6... b6 {[%clk 0:02:59.7]}
7. cxd5 {[%clk 0:02:44.9]} 7... exd5 {[%clk 0:03:00.6]} 8. O-O {[%clk
0:02:38.8]} 8... Bb7 {[%clk 0:03:01.1]} 9. Bf4 {[%clk 0:02:35.2]} 9... Nbd7
{[%clk 0:03:00.3]} 10. Ne5 {[%clk 0:02:35.1]} 10... c6 {[%clk 0:02:56.3]} 11.
Qc2 {[%clk 0:02:28]} 11... Nxe5 {[%clk 0:02:50.3]} 12. Bxe5 {[%clk 0:02:11.8]}
12... Nd7 {[%clk 0:02:50.5]} 13. Bf4 {[%clk 0:02:11.5]} 13... Bf6 {[%clk
0:02:50.4]} 14. Rad1 {[%clk 0:02:10]} 14... a5 {[%clk 0:02:47.6]} 15. e4 {[%clk
0:01:52.9]} 15... dxe4 {[%clk 0:02:39.2]} 16. Nxe4 {[%clk 0:01:41.6]} 16... Be7
{[%clk 0:02:36.6]} 17. h4 {[%clk 0:01:26.3]} 17... Nf6 {[%clk 0:02:36.1]} 18.
Nxf6+ {[%clk 0:01:05.6]} 18... Bxf6 {[%clk 0:02:37]} 19. Be3 {[%clk 0:00:44.9]}
19... Rc8 {[%clk 0:02:32]} 20. Be4 {[%clk 0:00:44.9]} 20... g6 {[%clk 0:02:25]}
21. h5 {[%clk 0:00:44.5]} 21... Bg7 {[%clk 0:02:20.2]} 22. hxg6 {[%clk
0:00:41.9]} 22... hxg6 {[%clk 0:02:17.2]} 23. Kg2 {[%clk 0:00:38.9]} 23... Re8
{[%clk 0:02:14.6]} 24. Bf3 {[%clk 0:00:39.1]} 24... Qc7 {[%clk 0:02:04.6]} 25.
Bf4 {[%clk 0:00:37.8]} 25... Qd7 {[%clk 0:02:02]} 26. Be5 {[%clk 0:00:30.8]}
26... Bxe5 {[%clk 0:01:48.5]} 27. dxe5 {[%clk 0:00:30.6]} 27... Qe6 {[%clk
0:01:49.2]} 28. Rfe1 {[%clk 0:00:20.6]} 28... Qxa2 {[%clk 0:01:49.2]} 29. Rd6
{[%clk 0:00:15.7]} 29... Re6 {[%clk 0:01:44.6]} 30. Rd7 {[%clk 0:00:13.1]} 30...
Ba8 {[%clk 0:01:35.6]} 31. Bg4 {[%clk 0:00:13.2]} 31... c5+ {[%clk 0:01:28.9]}
32. Kg1 {[%clk 0:00:13.2]} 32... Ree8 {[%clk 0:00:27.4]} 33. e6 {[%clk
0:00:13.1]} 33... f5 {[%clk 0:00:27.5]} 34. Qc3 {[%clk 0:00:09.4]} 34... Re7
{[%clk 0:00:03.9]} 35. Rxe7 {[%clk 0:00:09.6]} 35... Qxb2 {[%clk 0:00:02.2]} 36.
Qxb2 {[%clk 0:00:08.6]} 36... Kf8 {[%clk 0:00:03.1]} 37. Qg7# {[%clk 0:00:09]}
1-0